bitfinex-derivatives/quotes_SOLF0:USTF0_20250530
["timestamp","ask_amount","ask_price","bid_price","bid_amount"]
[1748579213439,0.04309662,164.85,164.81,12.7311617]
[1748579215049,6.10809662,164.85,164.81,12.7311617]
[1748579217945,0.04309662,164.85,164.82,6.066]
[1748579218148,0.04309662,164.85,164.83,30.22]
[1748579220649,0.04309662,164.85,164.83,36.2856]
[1748579221040,0.04309662,164.85,164.83,30.22]
[1748579221450,0.04309662,164.85,164.84,6.0653]
[1748579221750,0.04309662,164.85,164.83,30.22]
[1748579222146,0.04309662,164.85,164.83,36.2856]
[1748579224456,8.0351,164.9,164.83,36.8456642]
[1748579224751,2.0463,164.91,164.83,36.8456642]
[1748579224949,6.0639,164.88,164.84,6.0652]
[1748579225549,6.10669791,164.88,164.84,6.10999254]
[1748579226048,6.0642,164.87,164.84,6.10999254]
[1748579226249,0.04279791,164.88,164.84,6.10999254]
[1748579226639,6.10689791,164.88,164.84,6.10999254]
[1748579226845,0.04279791,164.88,164.84,0.04479254]
[1748579229144,6.0649,164.85,164.84,0.04479254]
[1748579229751,6.0647,164.86,164.84,0.04479254]
[1748579230646,6.0649,164.85,164.84,0.04479254]
[1748579232348,0.04279791,164.88,164.8,30.2]
[1748579232555,2.0056,164.89,164.8,30.2]
[1748579232750,3.63454068,164.88,164.8,30.2]
[1748579232951,3.63454068,164.87,164.8,30.2]
[1748579233143,33.83454068,164.86,164.77,30.2]
[1748579233345,0.03962853,164.83,164.8,0.04520563]
[1748579233555,6.0675,164.78,164.77,30.2]
[1748579233947,2.0374,164.85,164.77,30.2]
[1748579234150,3.6334217,164.84,164.77,30.2]
[1748579234347,6.0672,164.79,164.77,30.2]
[1748579236253,0.04412191,164.8,164.76,0.04490189]
[1748579236446,3.63108662,164.79,164.76,0.04490189]
[1748579236647,6.0679,164.77,164.76,0.04490189]
[1748579239761,6.0677,164.78,164.76,0.04490189]
[1748579239964,0.04412191,164.8,164.76,0.04490189]
[1748579240151,3.62163137,164.79,164.76,0.04490189]
[1748579240355,3.62163137,164.78,164.76,0.04490189]
[1748579240659,0.04412191,164.8,164.76,0.04490189]
[1748579240859,3.62166619,164.79,164.76,0.04490189]
[1748579241056,6.0672,164.79,164.76,0.04490189]
[1748579241260,0.04412191,164.8,164.76,0.04490189]
[1748579241563,3.62111511,164.79,164.76,0.04490189]
[1748579241758,0.04412191,164.8,164.76,0.04490189]
[1748579241958,3.62136137,164.79,164.76,0.04490189]
[1748579242257,0.04412191,164.8,164.76,0.04490189]
[1748579242461,3.62123404,164.79,164.76,0.04490189]
[1748579242658,0.04412191,164.8,164.76,0.04490189]
[1748579242858,3.62078955,164.79,164.76,0.04490189]
[1748579243059,6.0679,164.77,164.76,0.04490189]
[1748579262185,6.0678,164.78,164.76,0.04490189]
[1748579263982,6.0678,164.78,164.77,4.24168935]
[1748579264580,6.0673,164.79,164.77,4.24168935]
[1748579265978,6.0673,164.79,164.76,0.04490189]
[1748579266584,0.04412191,164.8,164.76,6.67244086]
[1748579267089,0.04412191,164.8,164.78,6.0674]
[1748579267293,0.04412191,164.8,164.76,6.67244086]
[1748579267885,0.04412191,164.8,164.78,6.0674]
[1748579268987,0.04412191,164.8,164.79,6.0673]
[1748579274098,0.04412191,164.8,164.79,12.69483897]
[1748579274691,3.66776599,164.8,164.79,12.69483897]
[1748579275091,3.66779358,164.8,164.79,12.69483897]
[1748579275296,0.04412191,164.8,164.79,12.69483897]
[1748579275485,3.66778988,164.8,164.79,12.69483897]
[1748579276998,3.67112798,164.8,164.79,12.69483897]
[1748579277696,3.67172244,164.8,164.79,12.69483897]
[1748579279895,3.67018381,164.8,164.79,12.69483897]
[1748579280405,3.6260619,164.8,164.79,12.69483897]
[1748579280705,2.1034,164.86,164.79,6.62753897]
[1748579281101,6.0655,164.84,164.81,6.0663]
[1748579281603,6.10970454,164.84,164.81,6.107314]
[1748579282002,0.04420454,164.84,164.81,6.107314]
[1748579282196,0.04420454,164.84,164.81,0.041014]
[1748579284610,0.04420454,164.84,164.81,6.107514]
[1748579285208,6.10960454,164.84,164.81,0.041014]
[1748579285902,6.10960454,164.84,164.83,4.23859074]
[1748579289508,0.04420454,164.84,164.83,4.23859074]
[1748579291018,0.04420454,164.84,164.83,10.30439074]
[1748579291521,1.9385,164.88,164.83,4.23859074]
[1748579291722,8.0027,164.88,164.86,4.23859074]
[1748579291913,1.9385,164.88,164.86,4.23859074]
[1748579292719,6.0643,164.87,164.86,4.23859074]
[1748579293412,6.0647,164.86,164.85,0.04485602]
[1748579293614,6.17709074,164.88,164.81,4.23859074]
[1748579293824,36.35709074,164.88,164.81,4.23859074]
[1748579294018,6.0658,164.83,164.81,4.23859074]
[1748579295018,0.0464659,164.84,164.81,4.23859074]
[1748579295220,0.0464659,164.84,164.83,4.23859074]
[1748579296020,0.0464659,164.84,164.82,6.62181631]
[1748579299224,0.0464659,164.84,164.82,12.68771631]
[1748579299423,0.0464659,164.84,164.82,6.62181631]
[1748579300017,0.0464659,164.84,164.82,12.68781631]
[1748579300720,0.0464659,164.84,164.82,6.62181631]
[1748579301022,0.0464659,164.84,164.81,6.0664]
[1748579301225,0.0464659,164.84,164.8,0.03917682]
[1748579302428,6.0661,164.83,164.8,0.03917682]
[1748579302932,6.0661,164.83,164.8,6.10607682]
[1748579303224,6.1120659,164.84,164.8,6.10607682]
[1748579305424,0.0464659,164.84,164.8,0.03917682]
[1748579306629,6.0665,164.81,164.8,0.03917682]
[1748579319950,6.0665,164.81,164.8,4.27947877]
[1748579320745,6.0665,164.81,164.8,0.03917682]
[1748579323245,6.0665,164.81,164.8,4.27947877]
[1748579323444,6.0665,164.81,164.8,0.03917682]
[1748579323646,34.3635,164.83,164.77,4.24030195]
[1748579323951,38.60380195,164.83,164.77,4.24030195]
[1748579324646,6.0676,164.78,164.74,6.0691]
[1748579324847,6.10757143,164.78,164.77,4.24030195]
[1748579326550,0.03997143,164.78,164.77,4.24030195]
[1748579331459,6.10757143,164.78,164.77,4.24030195]
[1748579331659,0.03997143,164.78,164.77,4.24030195]
[1748579332264,6.10757143,164.78,164.77,4.24030195]
[1748579332649,6.068,164.77,164.74,0.0401043]
[1748579333055,6.068,164.77,164.76,4.24030195]
[1748579336564,0.03997143,164.78,164.74,0.0401043]
[1748579336766,0.03997143,164.78,164.74,4.28040625]
[1748579336959,0.03997143,164.78,164.74,0.0401043]
[1748579337266,4.20337143,164.78,164.74,0.0401043]
[1748579337456,6.0687,164.75,164.74,0.0401043]
[1748579341663,4.20337143,164.78,164.7,36.79014229]
[1748579341664,4.20337143,164.78,164.7,30.16]
[1748579341855,4.1634,164.78,164.67,30.18]
[1748579342060,10.79354229,164.78,164.67,30.18]
[1748579342460,6.0708,164.7,164.67,30.18]
[1748579342660,6.11257788,164.7,164.67,30.21957579]
[1748579344459,4.1634,164.78,164.68,6.63014229]
[1748579344659,4.1634,164.78,164.71,6.63014229]
[1748579344863,6.0686,164.76,164.71,42.88014229]
[1748579345466,2.1155,164.8,164.71,36.81014229]
[1748579345668,0.04640742,164.75,164.74,6.63014229]
[1748579345862,0.03892867,164.76,164.74,6.63014229]
[1748579346070,0.03892867,164.76,164.74,12.69894229]
[1748579347772,0.03892867,164.76,164.74,6.63014229]
[1748579349070,0.03892867,164.76,164.74,12.69914229]
[1748579349975,0.03892867,164.76,164.74,6.63014229]
[1748579351466,0.03892867,164.76,164.74,12.69914229]
[1748579352272,0.03892867,164.76,164.75,6.0687]
[1748579352464,0.03892867,164.76,164.74,6.63014229]
[1748579352669,0.03892867,164.76,164.74,12.69894229]
[1748579352870,34.2113,164.83,164.74,36.79014229]
[1748579354069,0.04272047,164.8,164.77,0.04571244]
[1748579354272,6.10962047,164.8,164.77,6.11361244]
[1748579354667,0.04272047,164.8,164.77,6.11361244]
[1748579355270,0.04272047,164.8,164.78,6.0675]
[1748579355568,0.04272047,164.8,164.78,12.69764229]
[1748579358375,0.04272047,164.8,164.77,0.04571244]
[1748579359573,6.10972047,164.8,164.77,0.04571244]
[1748579360471,6.0673,164.79,164.77,0.04571244]
[1748579360668,0.04272047,164.8,164.77,0.04571244]
[1748579361069,6.10962047,164.8,164.77,0.04571244]
[1748579363777,0.04272047,164.8,164.77,0.04571244]
[1748579364881,6.10962047,164.8,164.77,0.04571244]
[1748579366279,0.04272047,164.8,164.77,6.67585473]
[1748579366874,0.04272047,164.8,164.79,6.0672]
[1748579368482,32.1755,164.86,164.78,30.16]
[1748579368483,2.0155,164.86,164.78,30.16]
[1748579368688,112.58885039,164.87,164.8,6.63014229]
[1748579369494,6.11101129,164.85,164.82,0.04059883]
[1748579370292,0.04571129,164.85,164.82,6.10659883]
[1748579370784,6.11101129,164.85,164.82,0.04059883]
[1748579373792,6.11101129,164.85,164.82,6.10669883]
[1748579375588,6.11101129,164.85,164.82,0.04059883]
[1748579375783,30.18571129,164.85,164.78,30.16]
[1748579375989,2.0715,164.84,164.75,30.14]
[1748579376188,2.0715,164.84,164.76,6.0681]
[1748579376794,6.0669,164.8,164.76,6.0681]
[1748579376995,6.0669,164.8,164.78,0.04076593]
[1748579377698,6.0666,164.81,164.78,0.04076593]
[1748579380094,6.0672,164.79,164.78,0.04076593]
[1748579381294,6.0672,164.79,164.72,36.2097]
[1748579381295,6.0682,164.77,164.72,36.2097]
[1748579382194,0.04091815,164.76,164.73,0.04486332]
[1748579382395,0.04091815,164.76,164.73,6.11426332]
[1748579383497,6.10931815,164.76,164.73,0.04486332]
[1748579384701,6.10931815,164.76,164.73,6.11426332]
[1748579386908,0.04091815,164.76,164.73,6.11426332]
[1748579388706,6.10931815,164.76,164.73,6.11426332]
[1748579394114,6.10931815,164.76,164.74,6.069]
[1748579394315,0.04091815,164.76,164.73,0.04486332]
[1748579394813,0.04091815,164.76,164.73,6.67500561]
[1748579395212,0.04091815,164.76,164.74,6.0688]
[1748579396514,0.04091815,164.76,164.75,6.0687]
[1748579396715,0.04091815,164.76,164.73,6.67500561]
[1748579397214,0.04091815,164.76,164.74,6.0688]
[1748579399518,0.04091815,164.76,164.73,6.67500561]
[1748579400019,0.04091815,164.76,164.74,6.069]
[1748579400320,0.04091815,164.76,164.73,6.67500561]
[1748579400321,0.04091815,164.76,164.73,0.04486332]
[1748579400818,6.10931815,164.76,164.73,0.04486332]
[1748579401416,0.04091815,164.76,164.73,0.04486332]
[1748579401820,0.04091815,164.76,164.75,6.0687]
[1748579402023,6.0671,164.8,164.74,6.63014229]
[1748579402915,0.04324774,164.79,164.76,6.068]
[1748579403116,0.04324774,164.79,164.76,6.11450751]
[1748579403418,0.04324774,164.79,164.76,0.04650751]
[1748579404019,6.0679,164.77,164.76,0.04650751]
[1748579404417,0.04324774,164.79,164.76,0.04650751]
[1748579404819,6.0678,164.78,164.76,0.04650751]
[1748579405016,0.04324774,164.79,164.76,6.11470751]
[1748579405219,0.04324774,164.79,164.77,6.63014229]
[1748579405422,2.0715,164.84,164.77,6.63014229]
[1748579405725,2.0715,164.84,164.8,6.0668]
[1748579405926,6.0659,164.83,164.8,6.0668]
[1748579406419,6.0664,164.82,164.8,0.04541836]
[1748579407125,6.0665,164.81,164.8,0.04541836]
[1748579407825,6.0662,164.82,164.8,0.04541836]
[1748579408724,0.04454812,164.83,164.8,0.04541836]
[1748579409623,6.11034812,164.83,164.8,0.04541836]
[1748579409822,0.04454812,164.83,164.8,0.04541836]
[1748579410321,0.04454812,164.83,164.69,65.57972044]
[1748579410518,30.14,164.83,164.7,32.119]
[1748579410719,30.14,164.83,164.7,36.77014229]
[1748579411319,6.069,164.75,164.71,6.0701]
[1748579411715,0.04287016,164.75,164.71,6.10833478]
[1748579411920,6.0691,164.74,164.71,0.03823478]
[1748579413322,6.11167016,164.75,164.71,6.10833478]
[1748579413728,0.04287016,164.75,164.71,6.10833478]
[1748579414419,6.11167016,164.75,164.71,6.10833478]
[1748579414621,0.04287016,164.75,164.71,6.10833478]
[1748579415826,6.0691,164.74,164.71,0.03823478]
[1748579416530,6.0691,164.74,164.71,6.10833478]
[1748579417430,6.0691,164.74,164.71,0.03823478]
[1748579418128,6.0691,164.74,164.71,6.10833478]
[1748579419731,6.11177016,164.75,164.71,6.10833478]
[1748579419935,0.04287016,164.75,164.71,6.10833478]
[1748579421128,6.0691,164.74,164.71,6.10833478]
[1748579426641,6.11157016,164.75,164.72,6.0698]
[1748579428139,6.0691,164.74,164.71,6.10833478]
[1748579428528,6.0698,164.73,164.71,0.03823478]
[1748579428737,0.04287016,164.75,164.71,0.03823478]
[1748579429738,6.0691,164.74,164.71,0.03823478]
[1748579430240,6.0691,164.74,164.71,6.10803478]
[1748579430442,6.11167016,164.75,164.71,6.10803478]
[1748579430941,6.11167016,164.75,164.72,6.0697]
[1748579431542,0.04287016,164.75,164.71,0.03823478]
[1748579432339,6.0693,164.74,164.71,6.10823478]
[1748579432544,0.04287016,164.75,164.71,0.03823478]
[1748579433237,6.0696,164.73,164.71,0.03823478]
[1748579434343,6.0698,164.72,164.71,0.03823478]
[1748579435739,6.0696,164.73,164.71,0.03823478]
[1748579436230,0.04287016,164.75,164.71,0.03823478]
[1748579436430,6.0698,164.72,164.71,0.03823478]
[1748579446149,6.0698,164.72,164.71,3.478e-05]
[1748579446455,46.13711484,164.72,164.71,3.478e-05]
[1748579447145,46.13465876,164.72,164.71,3.478e-05]
[1748579447444,48.18545876,164.72,164.71,3.478e-05]
[1748579447644,48.18105163,164.72,164.71,3.478e-05]
[1748579448846,48.1793018,164.72,164.71,3.478e-05]
[1748579449246,48.17571633,164.72,164.71,3.478e-05]
[1748579450250,44.3406,164.72,164.71,3.478e-05]
[1748579451536,38.2606,164.72,164.71,3.478e-05]
[1748579451741,42.09566981,164.72,164.71,3.478e-05]
[1748579451937,38.2606,164.72,164.71,3.478e-05]
[1748579452145,42.09776831,164.72,164.71,3.478e-05]
[1748579452649,42.09854594,164.72,164.71,3.478e-05]
[1748579453653,42.09898462,164.72,164.71,3.478e-05]
[1748579453854,42.09895905,164.72,164.71,3.478e-05]
[1748579454254,42.09964354,164.72,164.71,3.478e-05]
[1748579454656,42.09964942,164.72,164.71,3.478e-05]
[1748579455247,42.10068787,164.72,164.71,3.478e-05]
[1748579456247,42.10067768,164.72,164.71,3.478e-05]
[1748579456750,42.10072022,164.72,164.71,3.478e-05]
[1748579461054,42.09661794,164.72,164.71,3.478e-05]
[1748579463354,38.2606,164.72,164.71,3.478e-05]
[1748579463560,42.0974259,164.72,164.71,3.478e-05]
[1748579463760,42.09699424,164.72,164.71,3.478e-05]
[1748579465162,42.09691249,164.72,164.71,3.478e-05]
[1748579465962,46.34384796,164.72,164.71,3.478e-05]
[1748579466164,46.3436984,164.72,164.71,3.478e-05]
[1748579466665,46.34304444,164.72,164.71,3.478e-05]
[1748579467261,46.34331088,164.72,164.71,3.478e-05]
[1748579468763,46.34350888,164.72,164.71,3.478e-05]
[1748579468959,42.50753547,164.72,164.71,3.478e-05]
[1748579469163,46.3437919,164.72,164.71,3.478e-05]
[1748579469564,46.34340995,164.72,164.71,3.478e-05]
[1748579470470,40.27360995,164.72,164.61,4.24693547]
[1748579470667,4.24693547,164.67,164.61,4.24693547]
[1748579470867,3.83587448,164.66,164.61,4.24693547]
[1748579471065,3.83587448,164.65,164.61,4.24693547]
[1748579471370,3.83587448,164.64,164.61,4.24693547]
[1748579471570,0.03919994,164.65,164.61,4.28832808]
[1748579471868,6.0735,164.63,164.61,0.04139261]
[1748579473276,6.0735,164.62,164.61,0.04139261]
[1748579473572,9.90839419,164.62,164.61,0.04139261]
[1748579473875,9.90839419,164.62,164.58,30.16]
[1748579473876,3.83494501,164.62,164.55,38.77116846]
[1748579474167,2.1419,164.66,164.55,38.77116846]
[1748579474370,3.83369988,164.65,164.55,38.77116846]
[1748579474577,6.0741,164.61,164.56,6.0756]
[1748579474777,0.04078662,164.6,164.57,0.03867198]
[1748579476569,6.11518662,164.6,164.57,0.03867198]
[1748579477676,0.04078662,164.6,164.57,6.11397198]
[1748579478279,6.11498662,164.6,164.57,6.11397198]
[1748579479383,6.11498662,164.6,164.57,0.03867198]
[1748579482781,6.0746,164.59,164.57,0.03867198]
[1748579484480,6.0749,164.58,164.57,0.03867198]
[1748579486677,6.0749,164.58,164.57,7.198e-05]
[1748579486888,9.90756966,164.58,164.57,7.198e-05]
[1748579489384,6.0749,164.58,164.57,7.198e-05]
[1748579489586,9.90674897,164.58,164.57,7.198e-05]
[1748579491689,9.90686687,164.58,164.57,7.198e-05]
[1748579494794,6.0749,164.58,164.57,7.198e-05]
[1748579495085,9.90163166,164.58,164.57,7.198e-05]
[1748579495290,9.90163704,164.58,164.57,7.198e-05]
[1748579495987,9.89834705,164.58,164.57,7.198e-05]
[1748579497791,9.89399595,164.58,164.57,7.198e-05]
[1748579499989,9.89346981,164.58,164.57,7.198e-05]
[1748579500187,6.0749,164.58,164.57,7.198e-05]
[1748579500487,9.89404475,164.58,164.57,7.198e-05]
[1748579502994,9.89362767,164.58,164.57,7.198e-05]
[1748579503195,3.81872767,164.58,164.57,7.198e-05]
[1748579503497,0.04078662,164.6,164.57,4.25242519]
[1748579503695,0.04078662,164.6,164.59,6.0746]
[1748579503998,34.41235321,164.66,164.59,4.25235321]
[1748579504189,3.82199413,164.65,164.59,4.25235321]
[1748579504494,3.82261885,164.64,164.59,4.25235321]
[1748579504695,3.82261885,164.63,164.59,4.25235321]
[1748579504889,0.03918917,164.63,164.59,4.29302672]
[1748579505393,3.82269187,164.62,164.59,0.04067351]
[1748579505693,0.03918917,164.63,164.59,0.04067351]
[1748579505893,3.82281872,164.62,164.59,0.04067351]
[1748579506195,0.03918917,164.63,164.59,0.04067351]
[1748579506393,3.82259222,164.62,164.59,0.04067351]
[1748579506693,0.03918917,164.63,164.59,0.04067351]
[1748579507084,6.0742,164.6,164.59,0.04067351]
[1748579507685,9.89802378,164.6,164.59,0.04067351]
[1748579507889,6.0742,164.6,164.59,0.04067351]
[1748579510395,9.90059573,164.6,164.59,0.04067351]
[1748579511093,9.90036846,164.6,164.59,0.04067351]
[1748579511295,9.90119349,164.6,164.59,0.04067351]
[1748579513798,9.90445958,164.6,164.59,0.04067351]
[1748579516389,6.0742,164.6,164.59,0.04067351]
[1748579516597,9.9104041,164.6,164.59,0.04067351]
[1748579518499,9.9114093,164.6,164.59,0.04067351]
[1748579519301,9.91209386,164.6,164.59,0.04067351]
[1748579521598,9.91200786,164.6,164.59,0.04067351]
[1748579522008,9.91193938,164.6,164.59,0.04067351]
[1748579523295,9.90844565,164.6,164.59,0.04067351]
[1748579524706,9.90841169,164.6,164.59,0.04067351]
[1748579526703,9.90925128,164.6,164.59,0.04067351]
[1748579527406,9.90922264,164.6,164.59,0.04067351]
[1748579528203,9.9095255,164.6,164.59,0.04067351]
[1748579528402,9.90957284,164.6,164.59,0.04067351]
[1748579530012,9.90989622,164.6,164.59,0.04067351]
[1748579530413,9.90972828,164.6,164.59,0.04067351]
[1748579531809,3.83552828,164.6,164.59,4.29302672]
[1748579532010,0.03918917,164.63,164.59,4.29302672]
[1748579532211,0.03918917,164.63,164.62,4.25235321]
[1748579539017,0.03918917,164.63,164.61,34.39235321]
[1748579539414,0.03918917,164.63,164.61,40.46605321]
[1748579540426,0.03918917,164.63,164.61,34.39235321]
[1748579542023,0.03918917,164.63,164.61,40.46615321]
[1748579543828,0.03918917,164.63,164.61,34.39235321]
[1748579544429,0.03918917,164.63,164.61,40.46615321]
[1748579547928,0.03918917,164.63,164.62,6.0734]
[1748579553234,30.14,164.75,164.61,34.39235321]
[1748579553442,4.25235321,164.74,164.67,4.25235321]
[1748579553744,4.25235321,164.74,164.67,40.46365321]
[1748579553938,4.25235321,164.74,164.67,34.39235321]
[1748579554144,0.04005158,164.72,164.69,0.04530882]
[1748579554439,6.10995158,164.72,164.69,0.04530882]
[1748579554644,0.04005158,164.72,164.69,0.04530882]
[1748579554841,0.04005158,164.72,164.7,4.25235321]
[1748579555544,0.04005158,164.72,164.71,6.0701]
[1748579556048,0.04005158,164.72,164.71,36.2101]
[1748579556351,0.04005158,164.72,164.71,30.14]
[1748579559447,6.0686,164.76,164.71,30.14]
[1748579559651,4.25235321,164.78,164.72,4.25235321]
[1748579560050,6.069,164.75,164.72,4.25235321]
[1748579560461,6.10772709,164.75,164.72,4.29672507]
[1748579560750,0.03872709,164.75,164.72,0.04437186]
[1748579561051,4.25235321,164.74,164.72,0.04437186]
[1748579561255,6.0694,164.73,164.72,0.04437186]
[1748579565553,6.0694,164.73,164.72,7.186e-05]
[1748579565749,6.0094,164.74,164.65,30.12]
[1748579566654,0.0463428,164.71,164.68,0.04632396]
[1748579567357,6.1168428,164.71,164.68,0.04632396]
[1748579567853,6.0709,164.69,164.68,0.04632396]
[1748579591770,6.0709,164.69,164.68,2.396e-05]
[1748579592066,6.0731,164.63,164.62,30.12]
[1748579592262,6.0731,164.63,164.61,4.24524849]
[1748579593465,6.0734,164.62,164.61,4.24524849]
[1748579593866,0.03917609,164.64,164.6,30.16381995]
[1748579594264,6.0737,164.62,164.6,30.16381995]
[1748579597672,6.0738,164.61,164.6,0.04381995]
[1748579611280,0.03917609,164.64,164.6,0.04381995]
[1748579611480,0.03917609,164.64,164.61,30.12]
[1748579612774,30.12,164.7,164.61,36.75797043]
[1748579612969,32.0948,164.73,164.61,38.79957043]
[1748579613170,32.0948,164.73,164.64,6.0725]
[1748579613377,32.0948,164.73,164.65,30.12]
[1748579613871,0.03866771,164.71,164.67,0.04064547]
[1748579614179,6.0715,164.68,164.67,0.04064547]
[1748579618678,0.03866771,164.71,164.67,0.04064547]
[1748579619080,6.0708,164.7,164.67,0.04064547]
[1748579619281,0.03866771,164.71,164.67,0.04064547]
[1748579620079,6.0709,164.69,164.67,0.04064547]
[1748579620880,6.0706,164.7,164.67,0.04064547]
[1748579621182,0.03866771,164.71,164.67,0.04064547]
[1748579621686,6.0708,164.7,164.67,0.04064547]
[1748579622185,6.0709,164.69,164.67,0.04064547]
[1748579626384,6.0706,164.7,164.67,0.04064547]
[1748579628788,0.03866771,164.71,164.67,0.04064547]
[1748579629687,6.10886771,164.71,164.67,0.04064547]
[1748579629883,6.10886771,164.71,164.68,4.2443144]
[1748579630084,6.10886771,164.71,164.69,30.32]
[1748579630489,0.03866771,164.71,164.7,4.2443144]
[1748579630891,6.0693,164.74,164.7,10.3148144]
[1748579631381,6.0693,164.74,164.71,6.0701]
[1748579631588,6.0688,164.75,164.72,4.2443144]
[1748579631884,0.04485324,164.75,164.72,0.04219544]
[1748579632086,0.04485324,164.75,164.73,30.32]
[1748579635387,6.11355324,164.75,164.73,30.32]
[1748579636590,0.04485324,164.75,164.73,30.32]
[1748579637689,0.04485324,164.75,164.73,36.3893]
[1748579637890,1.9682,164.81,164.73,30.32]
[1748579638390,1.9682,164.81,164.75,6.0686]
[1748579638789,6.0676,164.78,164.74,6.0689]
[1748579639094,6.10816135,164.78,164.74,6.10997837]
[1748579639896,6.0683,164.77,164.74,0.04107837]
[1748579640890,6.0683,164.76,164.74,0.04107837]
[1748579641494,6.068,164.77,164.74,0.04107837]
[1748579642592,6.068,164.77,164.74,6.10997837]
[1748579643000,6.10826135,164.78,164.74,6.10997837]
[1748579643194,0.04056135,164.78,164.74,0.04107837]
[1748579643899,0.04056135,164.78,164.77,6.0679]
[1748579644096,4.0101,164.83,164.77,36.3879]
[1748579644592,4.0101,164.83,164.77,30.32]
[1748579644593,6.0672,164.8,164.77,30.32]
[1748579644794,4.0101,164.83,164.77,30.32]
[1748579645195,6.0672,164.79,164.78,0.03878169]
[1748579679628,6.0672,164.79,164.78,8.169e-05]
[1748579687024,0.04563695,164.82,164.78,8.169e-05]
[1748579687025,0.04563695,164.82,164.78,34.3613375]
[1748579687424,0.04563695,164.82,164.78,40.4285375]
[1748579687425,6.11183695,164.82,164.78,40.4285375]
[1748579687635,0.04563695,164.82,164.78,34.3613375]
[1748579687932,0.04563695,164.82,164.8,4.24125581]
[1748579688124,34.1875,164.9,164.81,6.0664]
[1748579688327,38.42875581,164.9,164.82,34.36125581]
[1748579688629,34.1875,164.9,164.84,4.24125581]
[1748579688930,6.0642,164.87,164.84,4.24125581]
[1748579689127,6.10825989,164.87,164.84,4.28371332]
[1748579689831,6.0647,164.86,164.84,4.28371332]
[1748579690526,6.065,164.85,164.84,0.04245751]
[1748579700333,6.065,164.85,164.84,5.751e-05]
[1748579712139,10.30460133,164.85,164.84,5.751e-05]
[1748579713141,6.065,164.85,164.84,5.751e-05]
[1748579713342,10.30460133,164.85,164.84,5.751e-05]
[1748579716040,6.065,164.85,164.84,5.751e-05]
[1748579716245,10.30460133,164.85,164.84,5.751e-05]
[1748579726751,6.065,164.85,164.84,5.751e-05]
[1748579728055,6.0647,164.86,164.84,5.751e-05]
[1748579731257,6.065,164.85,164.84,5.751e-05]
[1748579731764,6.0647,164.86,164.84,5.751e-05]
[1748579741666,6.10845989,164.87,164.84,5.751e-05]
[1748579741869,0.04405989,164.87,164.85,6.0649]
[1748579742569,0.04405989,164.87,164.84,4.23965884]
[1748579743171,6.10835989,164.87,164.84,10.30485884]
[1748579743564,6.10835989,164.87,164.84,4.23965884]
[1748579744066,6.0646,164.86,164.84,4.23965884]
[1748579745373,6.065,164.85,164.84,5.751e-05]
[1748579760679,10.30460133,164.85,164.84,5.751e-05]
[1748579768784,40.39960133,164.85,164.68,523.94]
[1748579768991,4.23960133,164.79,164.72,30.1]
[1748579769885,0.03869845,164.77,164.74,0.04074656]
[1748579770285,6.0686,164.76,164.74,0.04074656]
[1748579770488,0.03869845,164.77,164.74,0.04074656]
[1748579771189,0.03869845,164.77,164.74,6.10964656]
[1748579771393,0.03869845,164.77,164.74,0.04074656]
[1748579772489,6.10689845,164.77,164.74,0.04074656]
[1748579774095,0.03869845,164.77,164.74,0.04074656]
[1748579774993,6.10689845,164.77,164.74,0.04074656]
[1748579775389,0.03869845,164.77,164.74,0.04074656]
[1748579775591,6.0686,164.75,164.74,0.04074656]
[1748579776994,6.0683,164.76,164.74,0.04074656]
[1748579777793,6.10669845,164.77,164.74,0.04074656]
[1748579778695,6.0683,164.76,164.74,0.04074656]
[1748579778893,0.03869845,164.77,164.74,0.04074656]
[1748579779290,6.0685,164.76,164.74,0.04074656]
[1748579779497,0.03869845,164.77,164.74,0.04074656]
[1748579780086,6.0683,164.76,164.74,0.04074656]
[1748579782995,30.1,164.86,164.74,0.04074656]
[1748579783200,30.1,164.86,164.73,6.62833409]
[1748579783395,30.1,164.86,164.77,6.0679]
[1748579783591,30.1,164.86,164.77,36.1679]
[1748579783999,6.0663,164.82,164.8,0.03967455]
[1748579784701,6.0664,164.81,164.8,0.03967455]
[1748579785494,6.0661,164.82,164.8,0.03967455]
[1748579786294,6.10680514,164.83,164.8,0.03967455]
[1748579786697,0.04100514,164.83,164.81,6.0664]
[1748579786897,0.04100514,164.83,164.81,30.1]
[1748579787700,0.04100514,164.83,164.81,36.1662]
[1748579788304,0.04100514,164.83,164.81,30.1]
[1748579789996,6.10680514,164.83,164.81,30.1]
[1748579793707,6.0661,164.82,164.81,30.1]
[1748579796009,6.0664,164.81,164.8,0.03967455]
[1748579797110,6.0661,164.82,164.8,0.03967455]
[1748579797308,0.04100514,164.83,164.8,0.03967455]
[1748579797611,6.0661,164.82,164.8,0.03967455]
[1748579797812,0.04100514,164.83,164.8,0.03967455]